[Event "EYTCC Open U18 2022"]
[Site "Thessaloniki"]
[Date "2022.07.17"]
[Round "6.21"]
[White "Ratnesan, Ranesh"]
[Black "Filip, Andrei"]
[Result "1/2-1/2"]
[ECO "E11"]
[WhiteElo "2269"]
[BlackElo "2344"]
[Annotator "ChessBase"]
[PlyCount "82"]
[EventDate "2022.07.12"]
[EventType "team-tourn"]
[EventCountry "GRE"]
[SourceTitle "playchess.com"]
[Source "ChessBase"]
[SourceQuality "1"]
[WhiteTeam "England"]
[BlackTeam "Romania"]
[WhiteTeamCountry "ENG"]
[BlackTeamCountry "ROU"]
[TimeControl "40/5400+30:1800+30"]

1. d4 {[%emt 0:00:05]} Nf6 {[%emt 0:00:19]} 2. c4 {[%emt 0:00:09]} e6 {[%emt 0:00:04]} 3. Nf3 {[%emt 0:00:07]} Bb4+ {[%emt 0:00:06]} 4. Bd2 {[%emt 0:00:17]} c5 {[%emt 0:00:04]} 5. Bxb4 {[%emt 0:00:23]} cxb4 {[%emt 0:00:06]} 6. a3 {[%emt 0:00:25]} bxa3 {[%emt 0:00:10]} 7. Rxa3 {[%emt 0:00:28]} O-O {[%emt 0:00:07]} 8. Nc3 {[%emt 0:01:03]} d5 {[%emt 0:00:05]} 9. cxd5 {[%emt 0:02:01]} exd5 {[%emt 0:00:04]} 10. e3 {[%emt 0:01:10]} Nc6 {[%emt 0:01:02]} 11. Bb5 {[%emt 0:10:06]} Nb4 {[%emt 0:05:57]} 12. Ne5 {[%emt 0:07:18]} Bf5 {[%emt 0:12:42]} 13. O-O {[%emt 0:00:25]} Qe7 {[%emt 0:08:53]} 14. Nd3 {[%emt 0:16:37]} a5 {[%emt 0:26:52]} 15. Nxb4 {[%emt 0:05:43]} Qxb4 {[%emt 0:04:44]} 16. Rb3 {[%emt 0:02:43]} Qd6 {[%emt 0:00:37]} 17. h3 {[%emt 0:12:41]} b6 {[%emt 0:06:03]} 18. Bd3 {[%emt 0:03:34]} Bd7 {[%emt 0:01:15]} 19. Nb5 {[%emt 0:02:25]} Qe7 {[%emt 0:01:11]} 20. Qb1 {[%emt 0:07:33]} a4 {[%emt 0:11:53]} 21. Rc3 {[%emt 0:00:51]} Bxb5 {[%emt 0:02:03]} 22. Bxb5 {[%emt 0:00:17]} Ne4 {[%emt 0:00:30]} 23. Rc2 {[%emt 0:01:24]} Qb4 {[%emt 0:03:09]} 24. Bc6 {[%emt 0:01:43]} Ra5 {[%emt 0:01:12]} 25. Rd1 {[%emt 0:05:36]} Qb3 {[%emt 0:04:07]} 26. Qc1 {[%emt 0:01:27]} g6 {[%emt 0:02:13]} 27. f3 {[%emt 0:04:52]} Ng3 {[%emt 0:00:08]} 28. Kh2 {[%emt 0:03:13]} Nf5 {[%emt 0:00:07]} 29. Rc3 {[%emt 0:00:53]} Qb4 {[%emt 0:00:08]} 30. Qd2 {[%emt 0:01:25]} Rc8 {[%emt 0:01:00]} 31. e4 {[%emt 0:01:49]} Ne7 {[%emt 0:03:09]} 32. exd5 {[%emt 0:02:18]} Rd8 {[%emt 0:02:34]} 33. Kh1 {[%emt 0:01:36]} Nxd5 {[%emt 0:00:34]} 34. Ra3 {[%emt 0:00:45]} Qxd2 {[%emt 0:02:10]} 35. Rxd2 {[%emt 0:00:02]} b5 {[%emt 0:00:10]} 36. Bxd5 {[%emt 0:02:24]} Rxd5 {[%emt 0:00:07]} 37. b3 {[%emt 0:00:21]} b4 {[%emt 0:01:32]} 38. Rxa4 {[%emt 0:00:20]} Rxa4 {[%emt 0:00:05]} 39. bxa4 {[%emt 0:00:05]} b3 {[%emt 0:00:46]} 40. Rb2 {[%emt 0:00:00]} Rxd4 {[%emt 0:00:00]} 41. Rxb3 {[%emt 0:00:50]} Rxa4 {[%emt 0:00:09]} 1/2-1/2

[Event "EYTCC Open U18 2022"]
[Site "Thessaloniki"]
[Date "2022.07.17"]
[Round "6.22"]
[White "Stepanencu, Nicodim-Cosmin"]
[Black "Stoica, Savas Marin"]
[Result "1/2-1/2"]
[ECO "A15"]
[WhiteElo "2277"]
[BlackElo "2092"]
[Annotator "ChessBase"]
[PlyCount "82"]
[EventDate "2022.07.12"]
[EventType "team-tourn"]
[EventCountry "GRE"]
[SourceTitle "playchess.com"]
[Source "ChessBase"]
[SourceQuality "1"]
[WhiteTeam "Romania"]
[BlackTeam "England"]
[WhiteTeamCountry "ROU"]
[BlackTeamCountry "ENG"]
[TimeControl "40/5400+30:1800+30"]

1. c4 {[%emt 0:00:04]} Nf6 {[%emt 0:01:31]} 2. Nf3 {[%emt 0:00:05]} e6 {[%emt 0:00:08]} 3. Nc3 {[%emt 0:01:18]} d5 {[%emt 0:00:06]} 4. e3 {[%emt 0:00:03]} Nbd7 {[%emt 0:00:44]} 5. b3 {[%emt 0:03:08]} c6 {[%emt 0:06:39]} 6. Bb2 {[%emt 0:00:11]} Bd6 {[%emt 0:00:46]} 7. d4 {[%emt 0:00:22]} O-O {[%emt 0:00:11]} 8. Bd3 {[%emt 0:00:11]} Qe7 {[%emt 0:03:13]} 9. O-O {[%emt 0:04:07]} b6 {[%emt 0:01:18]} 10. Qe2 {[%emt 0:12:06]} Bb7 {[%emt 0:06:33]} 11. cxd5 {[%emt 0:12:14]} exd5 {[%emt 0:00:52]} 12. Ba6 {[%emt 0:00:08]} Rab8 {[%emt 0:12:32]} 13. Bxb7 {[%emt 0:00:42]} Rxb7 {[%emt 0:01:29]} 14. Rac1 {[%emt 0:03:07]} Rc7 {[%emt 0:03:46]} 15. Rc2 {[%emt 0:01:22]} Rfc8 {[%emt 0:00:26]} 16. Rfc1 {[%emt 0:00:48]} Ne4 {[%emt 0:06:56]} 17. Nxe4 {[%emt 0:19:55]} Qxe4 {[%emt 0:07:37]} 18. Ne1 {[%emt 0:09:28]} c5 {[%emt 0:14:58]} 19. Qb5 {[%emt 0:09:37]} Qe6 {[%emt 0:08:08]} 20. Nf3 {[%emt 0:05:28]} h6 {[%emt 0:01:14]} 21. Ba3 {[%emt 0:01:36]} Kh7 {[%emt 0:07:52]} 22. h3 {[%emt 0:02:11]} Qf5 {[%emt 0:00:59]} 23. dxc5 {[%emt 0:04:25]} bxc5 {[%emt 0:00:56]} 24. Bb2 {[%emt 0:00:05]} Qe6 {[%emt 0:00:54]} 25. Rd2 {[%emt 0:02:05]} Nb6 {[%emt 0:00:31]} 26. a4 {[%emt 0:00:58]} c4 {[%emt 0:05:01]} 27. Bd4 {[%emt 0:00:23]} cxb3 {[%emt 0:01:34]} 28. Rxc7 {[%emt 0:02:32]} Rxc7 {[%emt 0:00:04]} 29. Qxb3 {[%emt 0:01:48]} Nc4 {[%emt 0:01:01]} 30. Rd1 {[%emt 0:00:29]} Qd7 {[%emt 0:03:14]} 31. Ba1 {[%emt 0:00:42]} Rc5 {[%emt 0:00:44]} 32. Nd4 {[%emt 0:00:41]} Be5 {[%emt 0:00:26]} 33. Qd3+ {[%emt 0:03:04]} g6 {[%emt 0:00:14]} 34. f4 {[%emt 0:01:34]} Bg7 {[%emt 0:00:34]} 35. Nb3 {[%emt 0:00:02]} Rc7 {[%emt 0:00:34]} 36. Bxg7 {[%emt 0:00:04]} Kxg7 {[%emt 0:00:05]} 37. Qd4+ {[%emt 0:01:26]} Kh7 {[%emt 0:01:37]} 38. a5 {[%emt 0:00:30]} Qe7 {[%emt 0:00:51]} 39. Rd3 {[%emt 0:00:15]} Rb7 {[%emt 0:01:54]} 40. Kh2 {[%emt 0:00:00]} Rb5 {[%emt 0:00:00]} 41. Rc3 {[%emt 0:02:36]} a6 {[%emt 0:04:20]} 1/2-1/2

[Event "EYTCC Open U18 2022"]
[Site "Thessaloniki"]
[Date "2022.07.17"]
[Round "6.23"]
[White "Cont, Arya"]
[Black "Antonica, Dragos-Andrei"]
[Result "0-1"]
[ECO "C05"]
[WhiteElo "1968"]
[BlackElo "2355"]
[Annotator "ChessBase"]
[PlyCount "93"]
[EventDate "2022.07.12"]
[EventType "team-tourn"]
[EventCountry "GRE"]
[SourceTitle "playchess.com"]
[Source "ChessBase"]
[SourceQuality "1"]
[WhiteTeam "England"]
[BlackTeam "Romania"]
[WhiteTeamCountry "ENG"]
[BlackTeamCountry "ROU"]
[TimeControl "40/5400+30:1800+30"]

1. e4 {[%emt 0:00:02]} e6 {[%emt 0:00:22]} 2. d4 {[%emt 0:00:03]} d5 {[%emt 0:00:03]} 3. Nd2 {[%emt 0:00:04]} Nf6 {[%emt 0:00:07]} 4. Bd3 {[%emt 0:01:43]} c5 {[%emt 0:00:37]} 5. exd5 {[%emt 0:00:27]} Qxd5 {[%emt 0:01:12]} 6. Bb5+ {[%emt 0:05:59]} Nc6 {[%emt 0:03:57]} 7. Bxc6+ {[%emt 0:01:17]} Qxc6 {[%emt 0:04:20]} 8. Ngf3 {[%emt 0:00:59]} b6 {[%emt 0:03:35]} 9. O-O {[%emt 0:00:47]} Bb7 {[%emt 0:00:20]} 10. dxc5 {[%emt 0:03:34]} Bxc5 {[%emt 0:04:24]} 11. Nb3 {[%emt 0:01:27]} Be7 {[%emt 0:03:27]} 12. Qe2 {[%emt 0:01:30]} O-O {[%emt 0:01:23]} 13. Bg5 {[%emt 0:02:20]} h6 {[%emt 0:04:13]} 14. Nbd4 {[%emt 0:02:42]} Qc8 {[%emt 0:12:20]} 15. Bxf6 {[%emt 0:01:40]} Bxf6 {[%emt 0:00:25]} 16. c4 {[%emt 0:03:48]} Qc5 {[%emt 0:03:39]} 17. Rfd1 {[%emt 0:02:19]} Rfd8 {[%emt 0:06:05]} 18. Nb5 {[%emt 0:23:26]} a6 {[%emt 0:04:23]} 19. Nc3 {[%emt 0:04:43]} Rac8 {[%emt 0:18:15]} 20. Rxd8+ {[%emt 0:06:12]} Rxd8 {[%emt 0:00:25]} 21. Rd1 {[%emt 0:03:18]} Rc8 {[%emt 0:00:40]} 22. Nd2 {[%emt 0:06:12]} Qc6 {[%emt 0:08:29]} 23. f3 {[%emt 0:07:25]} Bd4+ {[%emt 0:00:41]} 24. Kf1 {[%emt 0:00:14]} Bxc3 {[%emt 0:03:17]} 25. bxc3 {[%emt 0:00:02]} a5 {[%emt 0:00:08]} 26. Rb1 {[%emt 0:02:34]} Ba6 {[%emt 0:00:53]} 27. Kg1 {[%emt 0:04:35]} Rd8 {[%emt 0:07:46]} 28. Rb2 {[%emt 0:03:34]} a4 {[%emt 0:01:48]} 29. Rb4 {[%emt 0:01:37]} Qc5+ {[%emt 0:02:13]} 30. Kf1 {[%emt 0:01:37]} Rxd2 {[%emt 0:01:25]} 31. Qxd2 {[%emt 0:00:19]} Bxc4+ {[%emt 0:00:04]} 32. Rxc4 {[%emt 0:00:10]} Qxc4+ {[%emt 0:00:02]} 33. Ke1 {[%emt 0:01:42]} f5 {[%emt 0:00:54]} 34. Kd1 {[%emt 0:00:46]} Qf1+ {[%emt 0:01:15]} 35. Kc2 {[%emt 0:01:33]} Qa1 {[%emt 0:00:33]} 36. Kd3 {[%emt 0:00:04]} a3 {[%emt 0:01:07]} 37. Qc2 {[%emt 0:01:02]} Kh7 {[%emt 0:01:08]} 38. Qe2 {[%emt 0:00:57]} b5 {[%emt 0:00:55]} 39. g4 {[%emt 0:04:20]} Qb1+ {[%emt 0:01:08]} 40. Kd4 {[%emt 0:00:00]} Qg1+ {[%emt 0:00:00]} 41. Ke5 {[%emt 0:00:42]} Qb6 {[%emt 0:09:09]} 42. Qd3 {[%emt 0:05:52]} Qb8+ {[%emt 0:09:57]} 43. Kd4 {[%emt 0:01:49]} Qd6+ {[%emt 0:00:30]} 44. Ke3 {[%emt 0:00:03]} Qe5+ {[%emt 0:00:18]} 45. Kf2 {[%emt 0:00:57]} Qxh2+ {[%emt 0:00:18]} 46. Ke3 {[%emt 0:00:14]} Qxa2 {[%emt 0:02:07]} 47. Kd4 0-1

[Event "EYTCC Open U18 2022"]
[Site "Thessaloniki"]
[Date "2022.07.17"]
[Round "6.24"]
[White "Antal, Hunor-Zoltan"]
[Black "Dias, Savin"]
[Result "1-0"]
[ECO "B36"]
[WhiteElo "2263"]
[BlackElo "1894"]
[Annotator "ChessBase"]
[PlyCount "95"]
[EventDate "2022.07.12"]
[EventType "team-tourn"]
[EventCountry "GRE"]
[SourceTitle "playchess.com"]
[Source "ChessBase"]
[SourceQuality "1"]
[WhiteTeam "Romania"]
[BlackTeam "England"]
[WhiteTeamCountry "ROU"]
[BlackTeamCountry "ENG"]
[TimeControl "40/5400+30:1800+30"]

1. e4 {[%emt 0:00:18]} c5 {[%emt 0:00:02]} 2. Nf3 {[%emt 0:00:15]} g6 {[%emt 0:00:04]} 3. d4 {[%emt 0:00:08]} cxd4 {[%emt 0:00:06]} 4. Nxd4 {[%emt 0:00:02]} Nc6 {[%emt 0:00:46]} 5. c4 {[%emt 0:00:12]} Nf6 {[%emt 0:00:25]} 6. Nc3 {[%emt 0:00:10]} Nxd4 {[%emt 0:00:15]} 7. Qxd4 {[%emt 0:00:02]} Bg7 {[%emt 0:00:50]} 8. Be3 {[%emt 0:00:16]} O-O {[%emt 0:00:13]} 9. Qd2 {[%emt 0:00:01]} d6 {[%emt 0:00:33]} 10. f3 {[%emt 0:00:02]} Bd7 {[%emt 0:00:22]} 11. Rc1 {[%emt 0:00:43]} a5 {[%emt 0:00:45]} 12. b3 {[%emt 0:00:08]} Bc6 {[%emt 0:01:06]} 13. Be2 {[%emt 0:01:55]} Nd7 {[%emt 0:00:49]} 14. O-O {[%emt 0:01:22]} Nc5 {[%emt 0:01:53]} 15. Rfd1 {[%emt 0:01:12]} Qb6 {[%emt 0:03:13]} 16. Bf1 {[%emt 0:09:16]} a4 {[%emt 0:12:07]} 17. b4 {[%emt 0:00:06]} Qxb4 {[%emt 0:00:59]} 18. Nd5 {[%emt 0:00:01]} Qxd2 {[%emt 0:01:03]} 19. Nxe7+ {[%emt 0:00:12]} Kh8 {[%emt 0:00:03]} 20. Rxd2 {[%emt 0:00:13]} Be5 {[%emt 0:06:06]} 21. f4 {[%emt 0:17:43]} Nxe4 {[%emt 0:05:38]} 22. fxe5 {[%emt 0:00:26]} Nxd2 {[%emt 0:00:10]} 23. Bxd2 {[%emt 0:00:11]} dxe5 {[%emt 0:00:10]} 24. Bb4 {[%emt 0:00:30]} Rfe8 {[%emt 0:11:20]} 25. Bd6 {[%emt 0:00:10]} f6 {[%emt 0:00:17]} 26. c5 {[%emt 0:02:11]} Kg7 {[%emt 0:07:25]} 27. Rb1 {[%emt 0:02:35]} Be4 {[%emt 0:10:10]} 28. Rb4 {[%emt 0:00:16]} f5 {[%emt 0:00:13]} 29. Bb5 {[%emt 0:01:50]} Kf6 {[%emt 0:00:42]} 30. Bxe8 {[%emt 0:01:56]} Rxe8 {[%emt 0:00:07]} 31. Rxa4 {[%emt 0:01:56]} Rxe7 {[%emt 0:00:08]} 32. Bxe7+ {[%emt 0:00:15]} Kxe7 {[%emt 0:00:04]} 33. Rb4 {[%emt 0:01:40]} Ke6 {[%emt 0:01:36]} 34. g4 {[%emt 0:10:26]} Kd7 {[%emt 0:06:43]} 35. gxf5 {[%emt 0:11:42]} gxf5 {[%emt 0:00:04]} 36. Rb6 {[%emt 0:01:03]} Bc6 {[%emt 0:01:09]} 37. Rb3 {[%emt 0:00:08]} Be4 {[%emt 0:01:34]} 38. Rh3 {[%emt 0:00:30]} f4 {[%emt 0:00:10]} 39. Rh6 {[%emt 0:00:37]} Bg6 {[%emt 0:00:28]} 40. h4 {[%emt 0:00:00]} Bf5 {[%emt 0:00:00]} 41. a4 {[%emt 0:07:07]} f3 {[%emt 0:20:09]} 42. Kf2 {[%emt 0:01:19]} e4 {[%emt 0:00:20]} 43. h5 {[%emt 0:00:45]} Kd8 {[%emt 0:03:54]} 44. a5 Kd7 45. Ke3 {[%emt 0:00:43]} Ke7 {[%emt 0:01:19]} 46. c6 {[%emt 0:00:22]} bxc6 {[%emt 0:00:07]} 47. a6 {[%emt 0:00:10]} Bc8 {[%emt 0:00:07]} 48. a7 {[%emt 0:00:16]} 1-0

[Event "EYTCC Open U18 2022"]
[Site "Thessaloniki"]
[Date "2022.07.17"]
[Round "6.25"]
[White "Atis, Hasan"]
[Black "Morgunov, Marc"]
[Result "0-1"]
[ECO "B69"]
[WhiteElo "1956"]
[BlackElo "2376"]
[Annotator "ChessBase"]
[PlyCount "92"]
[EventDate "2022.07.12"]
[EventType "team-tourn"]
[EventCountry "GRE"]
[SourceTitle "playchess.com"]
[Source "ChessBase"]
[SourceQuality "1"]
[WhiteTeam "Turkey"]
[BlackTeam "Austria"]
[WhiteTeamCountry "TUR"]
[BlackTeamCountry "AUT"]
[TimeControl "40/5400+30:1800+30"]

1. e4 {[%emt 0:00:03]} c5 {[%emt 0:00:31]} 2. Nf3 {[%emt 0:00:07]} d6 {[%emt 0:00:05]} 3. d4 {[%emt 0:00:04]} cxd4 {[%emt 0:00:06]} 4. Nxd4 {[%emt 0:00:07]} Nf6 {[%emt 0:00:06]} 5. Nc3 {[%emt 0:00:24]} Nc6 {[%emt 0:00:10]} 6. Bg5 {[%emt 0:00:43]} Bd7 {[%emt 0:00:06]} 7. Qd2 {[%emt 0:00:10]} a6 {[%emt 0:00:05]} 8. O-O-O {[%emt 0:00:06]} e6 {[%emt 0:00:04]} 9. f4 {[%emt 0:00:18]} Be7 {[%emt 0:00:07]} 10. Nf3 {[%emt 0:00:22]} b5 {[%emt 0:00:10]} 11. Bxf6 {[%emt 0:00:48]} gxf6 {[%emt 0:00:14]} 12. Kb1 {[%emt 0:00:18]} Qb6 {[%emt 0:03:04]} 13. f5 {[%emt 0:05:41]} h5 {[%emt 0:00:21]} 14. g3 {[%emt 0:00:27]} Ne5 {[%emt 0:00:47]} 15. Nd4 {[%emt 0:01:09]} Rc8 {[%emt 0:06:29]} 16. fxe6 {[%emt 0:37:32]} fxe6 {[%emt 0:00:23]} 17. Bh3 {[%emt 0:00:01]} Ng4 {[%emt 0:01:04]} 18. Bxg4 {[%emt 0:01:57]} hxg4 {[%emt 0:00:27]} 19. h3 {[%emt 0:00:02]} gxh3 {[%emt 0:08:30]} 20. Rh2 {[%emt 0:05:51]} Rc5 {[%emt 0:15:04]} 21. Qd3 {[%emt 0:21:25]} Rch5 {[%emt 0:18:35]} 22. Rdh1 {[%emt 0:01:19]} Qc5 {[%emt 0:01:51]} 23. Nce2 {[%emt 0:09:34]} e5 {[%emt 0:02:48]} 24. Nf5 {[%emt 0:00:02]} Bxf5 {[%emt 0:02:32]} 25. exf5 {[%emt 0:00:02]} Qc4 {[%emt 0:00:32]} 26. Qf3 {[%emt 0:00:48]} d5 {[%emt 0:00:49]} 27. Nc3 {[%emt 0:06:58]} e4 {[%emt 0:01:20]} 28. Qf4 {[%emt 0:01:41]} b4 {[%emt 0:01:16]} 29. Ne2 {[%emt 0:01:37]} Kd7 {[%emt 0:01:20]} 30. Rd1 {[%emt 0:01:20]} Bd6 {[%emt 0:00:36]} 31. Qf2 {[%emt 0:00:02]} Rc8 {[%emt 0:06:47]} 32. Nf4 {[%emt 0:02:38]} Rxf5 {[%emt 0:07:26]} 33. Rxh3 {[%emt 0:00:02]} Bxf4 {[%emt 0:00:51]} 34. gxf4 {[%emt 0:01:01]} Rxf4 {[%emt 0:01:18]} 35. Qh2 {[%emt 0:01:19]} Rf1 {[%emt 0:01:29]} 36. Rh7+ {[%emt 0:00:42]} Kc6 {[%emt 0:00:05]} 37. Qh5 {[%emt 0:01:35]} Kb6 {[%emt 0:00:20]} 38. Ka1 {[%emt 0:00:38]} Qxc2 {[%emt 0:02:31]} 39. Rb7+ {[%emt 0:00:13]} Kxb7 {[%emt 0:00:04]} 40. Qxd5+ {[%emt 0:00:00]} Qc6 {[%emt 0:00:00]} 41. Qxc6+ {[%emt 0:00:59]} Rxc6 {[%emt 0:00:43]} 42. Rxf1 {[%emt 0:00:03]} e3 {[%emt 0:00:14]} 43. Kb1 {[%emt 0:00:14]} e2 {[%emt 0:00:51]} 44. Re1 {[%emt 0:00:02]} Re6 {[%emt 0:00:05]} 45. Kc2 {[%emt 0:00:14]} Kc6 {[%emt 0:00:05]} 46. Kd3 {[%emt 0:00:19]} Kd5 {[%emt 0:00:09]} 0-1

[Event "EYTCC Open U18 2022"]
[Site "Thessaloniki"]
[Date "2022.07.17"]
[Round "6.26"]
[White "Kristoferitsch, Daniel"]
[Black "Aydogdu, Selcan Ayberk"]
[Result "1-0"]
[ECO "C18"]
[WhiteElo "2312"]
[BlackElo "1902"]
[Annotator "ChessBase"]
[PlyCount "79"]
[EventDate "2022.07.12"]
[EventType "team-tourn"]
[EventCountry "GRE"]
[SourceTitle "playchess.com"]
[Source "ChessBase"]
[SourceQuality "1"]
[WhiteTeam "Austria"]
[BlackTeam "Turkey"]
[WhiteTeamCountry "AUT"]
[BlackTeamCountry "TUR"]
[TimeControl "40/5400+30:1800+30"]

1. e4 {[%emt 0:00:05]} e6 {[%emt 0:00:05]} 2. d4 {[%emt 0:00:05]} d5 {[%emt 0:00:04]} 3. Nc3 {[%emt 0:00:05]} Bb4 {[%emt 0:00:04]} 4. e5 {[%emt 0:00:07]} c5 {[%emt 0:00:04]} 5. a3 {[%emt 0:00:04]} Bxc3+ {[%emt 0:00:04]} 6. bxc3 {[%emt 0:00:06]} Qa5 {[%emt 0:00:04]} 7. Bd2 {[%emt 0:00:07]} Qa4 {[%emt 0:00:04]} 8. h4 {[%emt 0:00:07]} Nc6 {[%emt 0:00:41]} 9. h5 {[%emt 0:00:14]} h6 10. Qg4 {[%emt 0:01:00]} Kf8 {[%emt 0:00:53]} 11. Rh3 {[%emt 0:00:46]} Nge7 {[%emt 0:04:31]} 12. Qf4 {[%emt 0:00:56]} Ke8 {[%emt 0:04:33]} 13. Rf3 {[%emt 0:04:50]} Rf8 {[%emt 0:00:34]} 14. Bd3 {[%emt 0:01:59]} Kd8 {[%emt 0:12:02]} 15. Rg3 {[%emt 0:07:00]} Nf5 {[%emt 0:15:45]} 16. Bxf5 {[%emt 0:00:46]} exf5 {[%emt 0:00:08]} 17. Rxg7 {[%emt 0:06:22]} Qxc2 {[%emt 0:03:33]} 18. Ne2 {[%emt 0:07:05]} Be6 {[%emt 0:06:24]} 19. Qxh6 {[%emt 0:10:33]} Kd7 {[%emt 0:08:09]} 20. Qf4 {[%emt 0:18:06]} c4 {[%emt 0:06:49]} 21. h6 {[%emt 0:07:47]} Ne7 {[%emt 0:08:41]} 22. Rc1 {[%emt 0:03:44]} Qb3 {[%emt 0:03:24]} 23. h7 {[%emt 0:01:21]} Qxa3 {[%emt 0:01:53]} 24. Qg5 {[%emt 0:01:27]} Qa6 {[%emt 0:05:02]} 25. Nf4 {[%emt 0:00:28]} Rae8 {[%emt 0:01:53]} 26. Nh5 {[%emt 0:00:23]} Kc8 {[%emt 0:01:37]} 27. Nf6 {[%emt 0:00:20]} Rd8 {[%emt 0:02:55]} 28. Ng8 {[%emt 0:01:23]} Ng6 {[%emt 0:02:12]} 29. Rxg6 {[%emt 0:09:27]} fxg6 {[%emt 0:00:05]} 30. h8=Q {[%emt 0:00:14]} Rxg8 {[%emt 0:00:43]} 31. Qh7 {[%emt 0:01:22]} Rde8 {[%emt 0:01:02]} 32. Qf6 {[%emt 0:02:22]} Qc6 {[%emt 0:00:37]} 33. Bh6 {[%emt 0:01:39]} a5 {[%emt 0:00:37]} 34. Rb1 {[%emt 0:02:35]} a4 {[%emt 0:01:22]} 35. Bc1 {[%emt 0:01:59]} Kb8 {[%emt 0:02:18]} 36. Ba3 {[%emt 0:01:24]} Qc8 {[%emt 0:01:18]} 37. Bd6+ {[%emt 0:00:07]} Ka8 {[%emt 0:00:12]} 38. Rb4 {[%emt 0:02:38]} Bd7 {[%emt 0:00:21]} 39. Qff7 {[%emt 0:00:27]} Bc6 {[%emt 0:00:33]} 40. Qxd5 {[%emt 0:00:00]} 1-0

[Event "EYTCC Open U18 2022"]
[Site "Thessaloniki"]
[Date "2022.07.17"]
[Round "6.27"]
[White "Turk, Talha Gunes"]
[Black "Marakovits, Nico"]
[Result "0-1"]
[ECO "B33"]
[WhiteElo "1597"]
[BlackElo "2259"]
[Annotator "ChessBase"]
[PlyCount "74"]
[EventDate "2022.07.12"]
[EventType "team-tourn"]
[EventCountry "GRE"]
[SourceTitle "playchess.com"]
[Source "ChessBase"]
[SourceQuality "1"]
[WhiteTeam "Turkey"]
[BlackTeam "Austria"]
[WhiteTeamCountry "TUR"]
[BlackTeamCountry "AUT"]
[TimeControl "40/5400+30:1800+30"]

1. e4 {[%emt 0:00:14]} c5 {[%emt 0:00:08]} 2. Nf3 {[%emt 0:00:04]} Nc6 {[%emt 0:00:24]} 3. d4 {[%emt 0:00:09]} cxd4 {[%emt 0:00:07]} 4. Nxd4 {[%emt 0:00:02]} Nf6 {[%emt 0:00:10]} 5. Nc3 {[%emt 0:00:04]} e5 {[%emt 0:00:47]} 6. Ndb5 {[%emt 0:00:17]} d6 {[%emt 0:00:10]} 7. Bg5 {[%emt 0:00:11]} a6 {[%emt 0:00:09]} 8. Na3 {[%emt 0:00:04]} b5 {[%emt 0:00:06]} 9. Nd5 {[%emt 0:00:04]} Be7 {[%emt 0:00:08]} 10. Bxf6 {[%emt 0:00:15]} Bxf6 {[%emt 0:00:07]} 11. c4 {[%emt 0:00:10]} b4 {[%emt 0:00:04]} 12. Nc2 {[%emt 0:00:04]} O-O {[%emt 0:00:04]} 13. Nxf6+ {[%emt 0:19:37]} Qxf6 {[%emt 0:00:32]} 14. Qd2 {[%emt 0:02:52]} a5 {[%emt 0:02:07]} 15. O-O-O {[%emt 0:03:13]} Rd8 {[%emt 0:01:22]} 16. Ne3 {[%emt 0:11:49]} Be6 {[%emt 0:05:49]} 17. g4 {[%emt 0:04:05]} Qf4 {[%emt 0:20:27]} 18. Rg1 {[%emt 0:12:08]} Nd4 {[%emt 0:03:11]} 19. Rg3 {[%emt 0:04:12]} Rac8 {[%emt 0:02:29]} 20. Bd3 {[%emt 0:07:43]} Nf3 {[%emt 0:24:37]} 21. Qe2 {[%emt 0:00:22]} Nd4 {[%emt 0:00:17]} 22. Qd2 {[%emt 0:02:10]} Qg5 {[%emt 0:03:46]} 23. Rh1 {[%emt 0:11:44]} Qe7 {[%emt 0:02:29]} 24. Kb1 {[%emt 0:04:18]} Qb7 {[%emt 0:03:54]} 25. f3 {[%emt 0:05:15]} a4 {[%emt 0:02:36]} 26. Rhg1 {[%emt 0:07:28]} b3 {[%emt 0:03:50]} 27. a3 {[%emt 0:00:15]} Qa7 {[%emt 0:03:42]} 28. R1g2 {[%emt 0:04:42]} Nc2 {[%emt 0:03:38]} 29. Nf5 {[%emt 0:00:49]} Bxc4 {[%emt 0:03:24]} 30. Bxc4 {[%emt 0:00:10]} Rxc4 {[%emt 0:00:09]} 31. Rh3 {[%emt 0:00:52]} Rdc8 {[%emt 0:04:28]} 32. Qg5 {[%emt 0:00:35]} f6 {[%emt 0:01:21]} 33. Qh4 {[%emt 0:00:31]} Nxa3+ {[%emt 0:00:10]} 34. bxa3 {[%emt 0:00:05]} Rc1+ {[%emt 0:00:04]} 35. Kb2 {[%emt 0:00:03]} R8c2+ {[%emt 0:00:05]} 36. Rxc2 {[%emt 0:00:07]} Rxc2+ {[%emt 0:00:05]} 37. Ka1 {[%emt 0:00:09]} Qg1+ {[%emt 0:00:02]} 0-1

[Event "EYTCC Open U18 2022"]
[Site "Thessaloniki"]
[Date "2022.07.17"]
[Round "6.28"]
[White "Pilshofer, Paul"]
[Black "Kayrak, Murat"]
[Result "1-0"]
[ECO "D02"]
[WhiteElo "2223"]
[BlackElo "1561"]
[Annotator "ChessBase"]
[PlyCount "69"]
[EventDate "2022.07.12"]
[EventType "team-tourn"]
[EventCountry "GRE"]
[SourceTitle "playchess.com"]
[Source "ChessBase"]
[SourceQuality "1"]
[WhiteTeam "Austria"]
[BlackTeam "Turkey"]
[WhiteTeamCountry "AUT"]
[BlackTeamCountry "TUR"]
[TimeControl "40/5400+30:1800+30"]

1. d4 {[%emt 0:00:25]} d5 {[%emt 0:00:05]} 2. Nf3 {[%emt 0:00:12]} Nf6 {[%emt 0:00:27]} 3. g3 {[%emt 0:00:05]} c6 {[%emt 0:00:04]} 4. Bg2 {[%emt 0:00:04]} Bf5 {[%emt 0:00:20]} 5. O-O {[%emt 0:00:07]} e6 {[%emt 0:00:47]} 6. c4 {[%emt 0:00:14]} Nbd7 {[%emt 0:00:11]} 7. Nc3 {[%emt 0:00:14]} h6 {[%emt 0:00:19]} 8. Nd2 {[%emt 0:00:08]} Be7 {[%emt 0:00:21]} 9. e4 {[%emt 0:00:17]} dxe4 {[%emt 0:00:21]} 10. Ndxe4 {[%emt 0:00:23]} O-O {[%emt 0:00:47]} 11. Be3 {[%emt 0:03:35]} Nxe4 {[%emt 0:00:34]} 12. Nxe4 {[%emt 0:01:15]} Nf6 {[%emt 0:00:15]} 13. Nc3 {[%emt 0:01:42]} Ng4 {[%emt 0:08:42]} 14. Bf4 {[%emt 0:04:56]} Qb6 {[%emt 0:02:40]} 15. Na4 {[%emt 0:03:28]} Qa6 {[%emt 0:03:49]} 16. Qb3 {[%emt 0:04:26]} Rad8 {[%emt 0:10:00]} 17. h3 {[%emt 0:21:27]} Nf6 {[%emt 0:04:35]} 18. Rfd1 {[%emt 0:01:21]} Be4 {[%emt 0:08:33]} 19. Bf1 {[%emt 0:02:12]} b6 {[%emt 0:06:37]} 20. d5 {[%emt 0:03:54]} Nd7 {[%emt 0:09:55]} 21. dxe6 {[%emt 0:11:46]} fxe6 {[%emt 0:00:13]} 22. c5 {[%emt 0:00:37]} b5 {[%emt 0:03:01]} 23. Qxe6+ {[%emt 0:00:22]} Rf7 {[%emt 0:00:41]} 24. Qxe4 {[%emt 0:04:19]} Qxa4 {[%emt 0:01:11]} 25. Qxa4 {[%emt 0:02:39]} bxa4 {[%emt 0:01:47]} 26. Bc7 {[%emt 0:04:35]} Rff8 {[%emt 0:06:17]} 27. Bxd8 {[%emt 0:07:04]} Rxd8 {[%emt 0:00:18]} 28. Rac1 {[%emt 0:00:31]} Ne5 {[%emt 0:00:41]} 29. Rxd8+ {[%emt 0:01:10]} Bxd8 {[%emt 0:00:05]} 30. f4 {[%emt 0:01:01]} Nf3+ {[%emt 0:00:26]} 31. Kf2 {[%emt 0:01:22]} Nd4 {[%emt 0:00:06]} 32. Rc4 {[%emt 0:00:33]} Ne6 {[%emt 0:01:14]} 33. Re4 {[%emt 0:00:40]} Nc7 {[%emt 0:02:59]} 34. Rxa4 {[%emt 0:00:23]} Be7 {[%emt 0:00:16]} 35. b4 {[%emt 0:00:29]} 1-0